[Event "World Junior U20 Girls 2018"]
[Site "Gebze"]
[Date "2018.09.07"]
[Round "4"]
[White "Nemcova, Karin"]
[Black "Tian, Shi Yuan"]
[Result "1/2-1/2"]
[ECO "C06"]
[WhiteElo "1990"]
[BlackElo "1923"]
[Annotator "NA RC"]
[PlyCount "129"]
[EventDate "2018.09.05"]
[EventType "swiss"]
[EventCountry "TUR"]
[SourceTitle "playchess.com"]
[Source "ChessBase"]
[SourceQuality "1"]
[TimeControl "40/5400+30:1800+30"]

1. e4 {[%emt 0:00:30]} e6 {[%emt 0:00:30]} 2. d4 {[%emt 0:00:30]} d5 {[%emt 0:00:00]} 3. Nd2 {[%emt 0:00:00]} Nf6 {[%emt 0:00:00]} 4. e5 {[%emt 0:00:00]} Nfd7 {[%emt 0:00:30]} 5. Bd3 {[%emt 0:00:00]} c5 {[%emt 0:00:30]} 6. c3 {[%emt 0:00:00]} Nc6 {[%emt 0:00:00]} 7. Ne2 {[%emt 0:00:30]} cxd4 {[%emt 0:00:00]} 8. cxd4 {[%emt 0:00:00]} f6 {[%emt 0:00:00]} 9. exf6 {[%emt 0:00:00]} Nxf6 {[%emt 0:00:00]} 10. O-O {[%emt 0:00:00]} Bd6 {[%emt 0:00:30]} 11. Nf3 {[%emt 0:00:00]} Qc7 {[%emt 0:03:30]} 12. h3 {[%emt 0:00:30]} O-O {[%emt 0:00:30]} 13. Be3 {[%emt 0:00:00] C06: French Tarrasch: 3...Nf6 4 e5 Nfd7 5 Bd3 main lines} Bd7 {[%emt 0:00:30]} 14. Re1 {[%emt 0:00:00]} Rae8 {[%emt 0:10:30]} (14... Be8 15. Ng5 Bf7 16. Rc1 Kh8 17. a3 Bg8 18. b4 a6 19. g3 h6 20. Nf4 Bxf4 21. Bxf4 {1-0 (38) Navara,D (2729)-Michiels,B (2563) Wijk aan Zee 2015 CBM 165 [Navara,D]}) 15. Rc1 {[%emt 0:05:30]} Qb8 {[%emt 0:04:30]} 16. Nc3 {[%emt 0:02:30]} a6 {[%emt 0:01:30]} 17. Na4 {[%emt 0:01:30]} e5 {[%emt 0:07:30]} 18. dxe5 {[%emt 0:01:30]} Nxe5 {[%emt 0:04:30]} 19. Nxe5 {[%emt 0:07:30]} Rxe5 {[%emt 0:11:30]} 20. Nc5 {[%emt 0:02:30]} Rfe8 $146 {[%emt 0:05:30]} ({Predecessor:} 20... Bc8 21. Qb3 Kh8 22. Bd4 Rg5 23. Ne6 Bxe6 24. Rxe6 {0-1 (33) Ciriolo,L (1924)-Carletti,A (1931) Porto San Giorgio 2018}) 21. Nxd7 {[%emt 0:04:30]} Nxd7 {[%emt 0:01:30]} 22. Qd2 {[%emt 0:01:30]} Qd8 {[%emt 0:06:30]} 23. Bd4 {[%emt 0:02:30]} R5e7 {[%emt 0:04:30]} 24. Rxe7 {[%emt 0:03:30]} Qxe7 {[%emt 0:01:30]} 25. Qe3 {[%emt 0:10:30]} Qf7 {[%emt 0:01:30]} 26. Qf3 {[%emt 0:05:30]} Qxf3 {[%emt 0:02:30]} 27. gxf3 {[%emt 0:00:00]} Be5 {[%emt 0:03:30]} 28. Bc3 {[%emt 0:05:00]} g6 {[%emt 0:04:30]} 29. Kg2 {[%emt 0:06:30]} Kf7 {[%emt 0:06:30]} 30. Bxe5 {[%emt 0:05:30]} Nxe5 {[%emt 0:00:30]} 31. Rc7+ {[%emt 0:01:30]} Re7 {[%emt 0:00:30]} 32. Rxe7+ {[%emt 0:05:30]} Kxe7 {[%emt 0:00:30]} 33. Bb1 {[%emt 0:00:30]} Ke6 {[%emt 0:02:51]} 34. f4 {[%emt 0:01:30]} Nc4 {[%emt 0:00:30]} 35. b3 {[%emt 0:00:30]} Nd6 {[%emt 0:01:22]} 36. Kf3 {[%emt 0:00:30]} Nb5 {[%emt 0:00:30]} 37. Bd3 {[%emt 0:00:30]} Nd4+ {[%emt 0:00:30]} 38. Ke3 {[%emt 0:00:30]} Nc6 {[%emt 0:01:36]} 39. a3 {[%emt 0:05:30]} Na5 {[%emt 0:04:37]} 40. Bc2 {[%emt 0:00:00]} Nc6 {[%emt 0:00:00]} 41. Bd3 {[%emt 0:01:00]} Ne7 {[%emt 0:05:34]} 42. Kd4 {[%emt 0:01:30]} Kd6 {[%emt 0:01:30]} 43. Kc3 {[%emt 0:03:30]} Kc5 {[%emt 0:08:30]} 44. b4+ {[%emt 0:02:30]} Kd6 {[%emt 0:00:30]} 45. a4 {[%emt 0:01:30]} Nc6 {[%emt 0:08:30]} 46. f5 {[%emt 0:22:30]} gxf5 {[%emt 0:02:28]} 47. Bxf5 {[%emt 0:00:30]} h6 {[%emt 0:00:16]} 48. f4 {[%emt 0:02:30]} b6 {[%emt 0:03:36]} 49. Bd3 {[%emt 0:09:49]} a5 {[%emt 0:00:09]} 50. b5 {[%emt 0:01:10]} Nd8 {[%emt 0:00:54]} 51. Kd4 {[%emt 0:01:23]} Ne6+ {[%emt 0:00:24]} 52. Ke3 {[%emt 0:00:15]} Ng7 {[%emt 0:03:24]} 53. Bc2 {[%emt 0:01:35]} Nh5 {[%emt 0:02:27]} 54. Bd3 {[%emt 0:01:20]} Ng7 {[%emt 0:04:32]} 55. Bg6 {[%emt 0:06:22]} Kc5 {[%emt 0:02:35]} 56. f5 {[%emt 0:02:15]} Kc4 {[%emt 0:00:56]} 57. f6 $18 {[%emt 0:00:50]} (57. Kf4 Kb4 58. f6 Ne6+ 59. Ke5) 57... Ne6 {[%emt 0:00:08]} 58. Bf5 {[%emt 0:00:00]} Nf8 {[%emt 0:01:09]} 59. Bc2 {[%emt 0:01:30]} Kc3 {[%emt 0:02:36]} 60. Bd1 {[%emt 0:00:13]} Ne6 {[%emt 0:01:08]} 61. f7 {[%emt 0:01:08]} d4+ {[%emt 0:00:06]} 62. Ke2 {[%emt 0:00:04]} Nf8 {[%emt 0:00:42]} 63. h4 {[%emt 0:00:27]} Ng6 {[%emt 0:00:37]} 64. h5 {[%emt 0:02:06]} Nf8 {[%emt 0:00:32]} 65. Ke1 {[%emt 0:00:07]} 1/2-1/2

[Event "World Junior U20 Girls 2018"]
[Site "Gebze"]
[Date "2018.09.07"]
[Round "4"]
[White "Nastase, Andreea-Cristina"]
[Black "Sade, Defne"]
[Result "1-0"]
[ECO "D17"]
[WhiteElo "1983"]
[BlackElo "1826"]
[Annotator "NA"]
[PlyCount "119"]
[EventDate "2018.09.05"]
[EventType "swiss"]
[EventCountry "TUR"]
[SourceTitle "playchess.com"]
[Source "ChessBase"]
[SourceQuality "1"]
[TimeControl "40/5400+30:1800+30"]

1. d4 {[%emt 0:00:30]} d5 {[%emt 0:00:30]} 2. c4 {[%emt 0:00:30]} c6 {[%emt 0:00:00]} 3. Nf3 {[%emt 0:00:00]} Nf6 {[%emt 0:00:00]} 4. Nc3 {[%emt 0:00:00]} dxc4 {[%emt 0:00:30]} 5. a4 {[%emt 0:00:00]} Bf5 {[%emt 0:00:30]} 6. Ne5 {[%emt 0:00:00]} Qc7 {[%emt 0:00:30]} 7. Nxc4 {[%emt 0:00:00]} Nbd7 {[%emt 0:00:30]} 8. g3 {[%emt 0:00:00] D17: Slav Defence: 5 a4 Bf5: Lines with 6 Nh4 and 6 Ne5} Nb6 {[%emt 0:21:30]} (8... e5 9. dxe5 Nxe5 10. Bf4 Nfd7 11. Bg2 g5 12. Nxe5 gxf4 13. Nxd7 O-O-O 14. Qd4 Qxd7 15. Qxf4 Bd6 16. Qc1 Be5 17. O-O Qd2 18. Rd1 Qxc1 19. Raxc1 Rxd1+ 20. Nxd1 {1-0 (48) Yu,Y (2751)-Mamedov,R (2709) Huaian 2017}) 9. Bf4 {[%emt 0:01:30]} Qd8 {[%emt 0:00:30]} 10. Ne3 {[%emt 0:00:30]} Bg6 $146 {[%emt 0:00:00]} ({Predecessor:} 10... Be6 11. a5 Nbd5 12. a6 b6 13. Bg2 Qd7 14. Nexd5 Nxd5 15. O-O Nxc3 16. bxc3 {0-1 (24) Pogorelov,R (2441)-Campora,D (2510) Seville 2007}) 11. Bg2 {[%emt 0:00:30]} e6 {[%emt 0:00:00]} 12. a5 {[%emt 0:01:30]} Nbd5 {[%emt 0:00:30]} 13. Nexd5 {[%emt 0:00:00]} exd5 {[%emt 0:00:30]} 14. a6 {[%emt 0:05:00]} b6 {[%emt 0:00:30]} 15. Qa4 {[%emt 0:01:30]} b5 {[%emt 0:05:30]} 16. Qb3 {[%emt 0:02:30]} Be7 {[%emt 0:01:30]} 17. O-O {[%emt 0:01:30]} O-O {[%emt 0:00:30]} 18. Na2 {[%emt 0:01:30]} Qb6 {[%emt 0:07:30]} 19. Nb4 {[%emt 0:00:00]} Ne4 {[%emt 0:02:30]} 20. Rfc1 {[%emt 0:07:00]} Rac8 {[%emt 0:01:30]} 21. e3 $11 {[%emt 0:02:30]} Rfd8 {[%emt 0:05:30]} 22. Nd3 {[%emt 0:03:30]} b4 {[%emt 0:17:30]} 23. Ne5 {[%emt 0:05:30]} c5 {[%emt 0:04:30]} 24. Nxg6 {[%emt 0:01:30]} hxg6 {[%emt 0:00:30]} 25. Bxe4 {[%emt 0:06:30]} dxe4 {[%emt 0:07:30]} 26. dxc5 {[%emt 0:01:30]} Bxc5 {[%emt 0:01:30]} 27. Rc2 {[%emt 0:00:30]} Be7 {[%emt 0:02:49]} 28. Rxc8 {[%emt 0:02:30]} Rxc8 {[%emt 0:00:06]} 29. Qd5 {[%emt 0:01:30]} Qc6 {[%emt 0:07:39]} 30. Qxc6 {[%emt 0:00:30]} Rxc6 {[%emt 0:00:30]} 31. Bb8 {[%emt 0:00:30]} Bf6 {[%emt 0:03:05]} 32. Bxa7 {[%emt 0:03:30]} Bxb2 {[%emt 0:00:30]} 33. Ra4 {[%emt 0:00:30]} Be5 {[%emt 0:01:13]} 34. Bd4 {[%emt 0:03:30]} Bxd4 {[%emt 0:05:24]} 35. exd4 {[%emt 0:00:30]} Rc8 {[%emt 0:00:30]} 36. Rxb4 {[%emt 0:00:30]} Ra8 {[%emt 0:00:00]} 37. Rb6 {[%emt 0:00:00]} Kf8 {[%emt 0:00:20]} 38. Kf1 {[%emt 0:00:00]} g5 {[%emt 0:02:33]} 39. Ke2 {[%emt 0:00:30]} f5 {[%emt 0:00:30]} 40. Rb5 {[%emt 0:00:00]} Rxa6 {[%emt 0:02:00]} 41. Rxf5+ {[%emt 0:00:00]} Kg8 {[%emt 0:30:30]} 42. Rxg5 {[%emt 0:00:30]} Kf7 {[%emt 0:00:30]} 43. Re5 {[%emt 0:00:30]} Kf6 {[%emt 0:00:30]} 44. Rxe4 {[%emt 0:00:30]} Kf5 {[%emt 0:00:30]} 45. Kf3 {[%emt 0:00:30]} Ra3+ {[%emt 0:00:30]} 46. Re3 {[%emt 0:00:00]} Ra4 {[%emt 0:00:00]} 47. Rd3 {[%emt 0:00:00]} g5 {[%emt 0:00:00]} 48. d5 {[%emt 0:00:00]} g4+ {[%emt 0:00:00]} 49. Kg2 {[%emt 0:00:00]} Ke4 {[%emt 0:00:00]} 50. Rd1 {[%emt 0:00:30]} Ra7 {[%emt 0:00:00]} 51. d6 {[%emt 0:00:00]} Rd7 {[%emt 0:00:00]} 52. Re1+ {[%emt 0:00:00]} Kf5 {[%emt 0:00:00]} 53. h3 {[%emt 0:01:30]} gxh3+ {[%emt 0:00:00]} 54. Kxh3 {[%emt 0:00:00]} Rxd6 {[%emt 0:00:00]} 55. Ra1 {[%emt 0:00:00]} Ke4 {[%emt 0:00:00]} 56. Kg2 {[%emt 0:00:30]} Rd4 {[%emt 0:00:00]} 57. f3+ {[%emt 0:00:30]} Ke3 {[%emt 0:00:00]} 58. Re1+ {[%emt 0:00:30]} Kd2 {[%emt 0:00:00]} 59. Re8 {[%emt 0:00:00]} Ra4 {[%emt 0:00:00]} 60. g4 {[%emt 0:00:00]} 1-0

[Event "World Junior U20 Girls 2018"]
[Site "Gebze"]
[Date "2018.09.07"]
[Round "4"]
[White "Aubert, Laurane"]
[Black "Can, Isil"]
[Result "1/2-1/2"]
[ECO "C45"]
[WhiteElo "1970"]
[BlackElo "1798"]
[Annotator "NA"]
[PlyCount "97"]
[EventDate "2018.09.05"]
[EventType "swiss"]
[EventCountry "TUR"]
[SourceTitle "playchess.com"]
[Source "ChessBase"]
[SourceQuality "1"]
[TimeControl "40/5400+30:1800+30"]

1. e4 {[%emt 0:00:30]} e5 {[%emt 0:00:30]} 2. Nf3 {[%emt 0:00:30]} Nc6 {[%emt 0:00:30]} 3. d4 {[%emt 0:00:30]} exd4 {[%emt 0:00:00]} 4. Nxd4 {[%emt 0:00:00]} Bc5 {[%emt 0:00:00]} 5. Nb3 {[%emt 0:00:00]} Bb6 {[%emt 0:00:30]} 6. Nc3 {[%emt 0:00:00]} Nf6 {[%emt 0:00:00]} 7. Qe2 {[%emt 0:00:00] C45: Scotch Game} d6 {[%emt 0:00:00]} (7... O-O 8. Bg5 h6 9. Bh4 Nd4 10. Qd3 Nxb3 11. cxb3 g5 12. Bg3 d5 13. O-O-O c6 14. exd5 Nxd5 {½-½ (36) Le,Q (2728)-Fedoseev,V (2707) Danzhou 2018}) 8. Be3 {[%emt 0:00:00]} Bxe3 {[%emt 0:00:00]} 9. Qxe3 {[%emt 0:01:00]} a5 {[%emt 0:01:00]} 10. a4 {[%emt 0:05:30]} Be6 {[%emt 0:04:30]} 11. Nd4 {[%emt 0:08:30]} Nxd4 $146 {[%emt 0:02:30]} ({Predecessor:} 11... Bd7 12. O-O-O O-O 13. f3 Re8 {1-0 (38) Zawadzka,J (2435)-Trifan,A (2308) Arad 2018}) 12. Qxd4 {[%emt 0:00:30]} O-O {[%emt 0:00:00]} 13. f3 {[%emt 0:02:30]} Nd7 {[%emt 0:02:00]} 14. h4 {[%emt 0:01:30]} Qe7 {[%emt 0:01:30]} 15. g4 {[%emt 0:03:30]} Ne5 {[%emt 0:06:30]} 16. Qf2 {[%emt 0:03:30]} d5 {[%emt 0:08:30]} 17. Qg3 {[%emt 0:06:30]} Nc4 {[%emt 0:08:30]} 18. Bxc4 {[%emt 0:03:30]} dxc4 {[%emt 0:00:30]} 19. O-O-O {[%emt 0:00:30]} b5 {[%emt 0:04:30]} 20. Nxb5 {[%emt 0:29:30]} Qb4 {[%emt 0:02:30]} 21. f4 {[%emt 0:01:30]} Qxa4 {[%emt 0:00:30]} 22. Na3 {[%emt 0:00:30]} c3 {[%emt 0:09:30]} 23. Qxc3 {[%emt 0:01:30]} Bxg4 {[%emt 0:00:30]} 24. Rd4 {[%emt 0:03:30]} Qe8 {[%emt 0:00:30]} 25. h5 {[%emt 0:01:30]} Qe6 {[%emt 0:02:30]} 26. h6 {[%emt 0:03:30]} Qf6 {[%emt 0:01:30]} 27. e5 {[%emt 0:02:30]} Qe6 {[%emt 0:01:30]} 28. Rg1 {[%emt 0:07:43]} g6 {[%emt 0:04:30]} 29. Rc4 {[%emt 0:02:31]} Rfd8 {[%emt 0:07:30]} 30. Nb5 {[%emt 0:08:05]} Be2 {[%emt 0:14:42]} 31. Rc6 {[%emt 0:01:48]} Qd7 {[%emt 0:01:00]} 32. Nd6 {[%emt 0:02:19]} cxd6 {[%emt 0:00:21]} 33. exd6 {[%emt 0:00:25]} f6 {[%emt 0:00:57]} 34. Qxf6 {[%emt 0:00:36]} Qf7 {[%emt 0:00:13]} 35. Qe5 {[%emt 0:00:53]} Re8 {[%emt 0:03:30]} 36. Qd4 {[%emt 0:00:09]} Rad8 {[%emt 0:00:00]} 37. f5 {[%emt 0:00:46]} Bh5 {[%emt 0:03:20]} 38. Rc7 {[%emt 0:00:33]} Rd7 {[%emt 0:00:08]} 39. fxg6 {[%emt 0:00:52]} Bxg6 {[%emt 0:00:07]} 40. Rxd7 {[%emt 0:00:00]} Qxd7 {[%emt 0:00:00]} 41. Qd5+ {[%emt 0:08:20]} Qf7 {[%emt 0:02:42]} 42. Qd4 {[%emt 0:05:20]} Rd8 {[%emt 0:26:07]} 43. b3 {[%emt 0:06:15]} Qf8 {[%emt 0:01:46]} 44. Qd5+ {[%emt 0:01:10]} Qf7 {[%emt 0:00:08]} 45. Qe5 $1 {[%emt 0:02:08]} Qf8 {[%emt 0:01:21]} 46. Qe6+ {[%emt 0:06:21]} Qf7 {[%emt 0:00:06]} 47. Qe5 $11 {[%emt 0:02:18]} Qf8 {[%emt 0:00:17]} 48. Qd5+ {[%emt 0:00:32]} Qf7 {[%emt 0:00:18]} 49. Qd4 {[%emt 0:02:11]} 1/2-1/2

[Event "World Junior U20 Girls 2018"]
[Site "Gebze"]
[Date "2018.09.07"]
[Round "4"]
[White "Meenal Gupta"]
[Black "Urh, Zala"]
[Result "1-0"]
[ECO "C67"]
[WhiteElo "1963"]
[BlackElo "2128"]
[Annotator "NA"]
[PlyCount "83"]
[EventDate "2018.09.05"]
[EventType "swiss"]
[EventCountry "TUR"]
[SourceTitle "playchess.com"]
[Source "ChessBase"]
[SourceQuality "1"]
[TimeControl "40/5400+30:1800+30"]

1. e4 {[%emt 0:00:30]} e5 {[%emt 0:03:30]} 2. Nf3 {[%emt 0:00:30]} Nc6 {[%emt 0:00:30]} 3. Bb5 {[%emt 0:00:00]} Nf6 {[%emt 0:00:30]} 4. O-O {[%emt 0:00:00]} Nxe4 {[%emt 0:00:00]} 5. d4 {[%emt 0:00:00]} Nd6 {[%emt 0:00:00]} 6. Bxc6 {[%emt 0:01:00]} dxc6 {[%emt 0:00:00]} 7. dxe5 {[%emt 0:00:30]} Nf5 {[%emt 0:00:00]} 8. Qxd8+ {[%emt 0:00:00]} Kxd8 {[%emt 0:00:00]} 9. Nc3 {[%emt 0:10:00]} h6 {[%emt 0:00:00]} 10. b3 {[%emt 0:01:30]} Bd7 {[%emt 0:02:30]} 11. Ne4 {[%emt 0:05:30]} b6 {[%emt 0:02:30]} 12. Bb2 {[%emt 0:05:30]} c5 {[%emt 0:03:30]} 13. Rad1 {[%emt 0:00:30]} Kc8 {[%emt 0:00:30]} 14. Ng3 {[%emt 0:02:30]} Nxg3 {[%emt 0:09:30]} 15. hxg3 {[%emt 0:00:30]} Be7 {[%emt 0:00:00]} 16. e6 {[%emt 0:10:30]} Bxe6 {[%emt 0:00:00]} 17. Bxg7 {[%emt 0:00:30]} Rh7 {[%emt 0:01:30]} 18. Be5 {[%emt 0:00:00]} Kb7 {[%emt 0:00:30]} 19. c4 {[%emt 0:05:00]} Rd8 {[%emt 0:03:30]} 20. Rxd8 {[%emt 0:01:30]} Bxd8 {[%emt 0:00:30]} 21. Rd1 {[%emt 0:00:00]} Kc8 {[%emt 0:03:30]} 22. Ne1 {[%emt 0:01:00]} h5 {[%emt 0:04:30]} 23. Nc2 {[%emt 0:01:30]} f6 {[%emt 0:03:30]} 24. Bc3 {[%emt 0:00:30]} Rd7 {[%emt 0:01:30]} 25. Rxd7 {[%emt 0:00:30]} Kxd7 {[%emt 0:01:30]} 26. Ne3 {[%emt 0:00:00]} c6 {[%emt 0:04:30]} 27. f4 {[%emt 0:01:00]} Ke7 {[%emt 0:04:30]} 28. f5 {[%emt 0:06:30]} Bc8 {[%emt 0:01:30]} 29. Kf2 {[%emt 0:00:30]} Kf7 {[%emt 0:01:30]} 30. Kf3 {[%emt 0:00:30]} Be7 {[%emt 0:01:30]} 31. Ke4 {[%emt 0:02:30]} Bf8 {[%emt 0:06:30]} 32. g4 {[%emt 0:07:30]} hxg4 {[%emt 0:07:30]} 33. Nxg4 {[%emt 0:00:30]} Be7 {[%emt 0:00:00]} 34. Bd2 {[%emt 0:01:30]} b5 {[%emt 0:05:00]} 35. Bf4 {[%emt 0:00:30]} Bd7 {[%emt 0:04:30]} 36. Nf2 {[%emt 0:01:30]} Kg7 {[%emt 0:03:30]} 37. g4 {[%emt 0:00:30]} a6 {[%emt 0:03:30]} 38. Kd3 {[%emt 0:00:30]} Be8 {[%emt 0:03:22]} 39. Ne4 {[%emt 0:00:30]} Bf7 {[%emt 0:01:01]} 40. Be3 {[%emt 0:00:30]} a5 {[%emt 0:00:00]} 41. Bxc5 {[%emt 0:00:30]} Kf8 {[%emt 0:02:37]} 42. Nxf6 {[%emt 0:00:30]} 1-0

[Event "World Junior U20 Girls 2018"]
[Site "Gebze"]
[Date "2018.09.07"]
[Round "4"]
[White "Heydarova, Aytaj"]
[Black "Anacoglu, Cisel"]
[Result "1/2-1/2"]
[ECO "C56"]
[WhiteElo "1948"]
[BlackElo "1791"]
[Annotator "NA"]
[PlyCount "65"]
[EventDate "2018.09.05"]
[EventType "swiss"]
[EventCountry "TUR"]
[SourceTitle "playchess.com"]
[Source "ChessBase"]
[SourceQuality "1"]
[TimeControl "40/5400+30:1800+30"]

1. e4 {[%emt 0:00:30]} e5 {[%emt 0:00:30]} 2. Nf3 {[%emt 0:00:30]} Nc6 {[%emt 0:00:30]} 3. d4 {[%emt 0:00:30]} exd4 {[%emt 0:00:30]} 4. Bc4 {[%emt 0:00:30]} Nf6 {[%emt 0:00:00]} 5. O-O {[%emt 0:00:00]} Nxe4 {[%emt 0:00:00]} 6. Re1 {[%emt 0:00:00]} d5 {[%emt 0:00:00]} 7. Bxd5 {[%emt 0:00:00]} Qxd5 {[%emt 0:00:00]} 8. Nc3 {[%emt 0:00:00]} Qh5 {[%emt 0:00:00]} 9. Nxe4 {[%emt 0:00:30]} Be6 {[%emt 0:00:00]} 10. Nxd4 {[%emt 0:15:30]} Qxd1 {[%emt 0:04:30]} 11. Rxd1 {[%emt 0:00:30]} O-O-O {[%emt 0:01:30]} 12. Be3 {[%emt 0:01:30]} Nxd4 {[%emt 0:01:30]} 13. Rxd4 {[%emt 0:03:30]} Rxd4 {[%emt 0:02:30]} 14. Bxd4 {[%emt 0:00:30]} Bf5 {[%emt 0:03:30]} 15. Re1 {[%emt 0:10:30]} f6 {[%emt 0:09:30]} 16. f3 {[%emt 0:15:30]} Bxe4 {[%emt 0:15:30]} 17. Rxe4 {[%emt 0:01:30]} Bd6 $11 {[%emt 0:08:30]} 18. Rg4 {[%emt 0:04:30]} c5 {[%emt 0:14:30]} 19. Bc3 {[%emt 0:04:30]} Bf8 {[%emt 0:00:30]} 20. Kf2 {[%emt 0:06:30]} Kd7 {[%emt 0:01:30]} 21. h4 {[%emt 0:08:30]} h5 {[%emt 0:05:30]} 22. Ra4 {[%emt 0:05:30]} a6 {[%emt 0:00:30]} 23. Bd2 {[%emt 0:01:41]} Bd6 {[%emt 0:00:30]} 24. Be3 {[%emt 0:01:32]} Re8 {[%emt 0:04:30]} 25. g4 {[%emt 0:04:35]} hxg4 {[%emt 0:02:30]} 26. Rxg4 {[%emt 0:00:26]} Re7 {[%emt 0:07:56]} 27. h5 {[%emt 0:00:49]} Ke6 {[%emt 0:05:57]} 28. a4 {[%emt 0:04:05]} b5 {[%emt 0:00:43]} 29. axb5 {[%emt 0:02:43]} axb5 {[%emt 0:00:02]} 30. b3 {[%emt 0:00:12]} Ra7 {[%emt 0:02:16]} 31. Ke2 {[%emt 0:00:16]} Ra2 {[%emt 0:00:00]} 32. Kd3 {[%emt 0:04:36]} Kf7 {[%emt 0:02:09]} 33. h6 {[%emt 0:00:53]} 1/2-1/2

[Event "World Junior U20 Girls 2018"]
[Site "Gebze"]
[Date "2018.09.07"]
[Round "4"]
[White "Kocyigit, Buse Naz"]
[Black "Incecik, Seyma Zeynep"]
[Result "1-0"]
[ECO "E90"]
[WhiteElo "1944"]
[BlackElo "1716"]
[Annotator "NA RC"]
[PlyCount "135"]
[EventDate "2018.09.05"]
[EventType "swiss"]
[EventCountry "TUR"]
[SourceTitle "playchess.com"]
[Source "ChessBase"]
[SourceQuality "1"]
[TimeControl "40/5400+30:1800+30"]

1. d4 {[%emt 0:00:30]} d6 {[%emt 0:00:30]} 2. Nf3 {[%emt 0:00:00]} g6 {[%emt 0:00:30]} 3. c4 {[%emt 0:00:00]} Bg7 {[%emt 0:00:00]} 4. e4 {[%emt 0:00:30]} Nf6 {[%emt 0:00:00]} 5. Nc3 {[%emt 0:00:30]} O-O {[%emt 0:00:30]} 6. h3 {[%emt 0:00:30]} Nc6 {[%emt 0:00:30]} 7. Be3 {[%emt 0:01:30]} Nd7 {[%emt 0:00:30] E90: King's Indian: Classical: Early deviations and 6 h3} (7... e5 8. d5 Ne7 9. g4 a5 10. Nd2 c6 11. Be2 b5 12. g5 Ne8 13. cxb5 cxd5 14. Nxd5 Nxd5 15. exd5 f5 16. f3 f4 17. Bf2 Qxg5 {0-1 (36) Mkrtchian,L (2376)-Vijayalakshmi,S (2357) Riadh 2017}) 8. g4 {[%emt 0:01:30]} e5 {[%emt 0:08:30]} 9. d5 {[%emt 0:02:30]} Ne7 {[%emt 0:02:30]} 10. Nd2 {[%emt 0:02:30]} a5 {[%emt 0:02:30]} 11. Be2 $146 {[%emt 0:01:30]} ({Predecessor:} 11. Qc2 Nc5 12. Be2 Bd7 13. Nb3 b6 14. Nxc5 bxc5 15. O-O-O Qb8 16. h4 c6 {1-0 (25) Loxine,J (2194)-Slawtschew,S (1956) Dresden 2004}) 11... Kh8 {[%emt 0:01:30]} 12. Qc2 {[%emt 0:00:30]} b6 {[%emt 0:00:30]} 13. O-O-O {[%emt 0:03:30]} Nc5 {[%emt 0:00:30]} 14. h4 {[%emt 0:02:30]} Bd7 {[%emt 0:02:30]} 15. h5 {[%emt 0:06:30]} Kg8 {[%emt 0:00:30]} 16. g5 {[%emt 0:05:30]} a4 {[%emt 0:07:30]} 17. a3 {[%emt 0:01:30]} Qc8 {[%emt 0:09:30]} (17... c6 $16) 18. Rdg1 {[%emt 0:01:30]} c6 {[%emt 0:05:30]} 19. Bxc5 {[%emt 0:13:30]} bxc5 {[%emt 0:00:30]} 20. Qd3 {[%emt 0:01:30]} f5 {[%emt 0:08:30]} (20... Qb7 $14) 21. gxf6 {[%emt 0:03:30]} Rxf6 {[%emt 0:01:30]} 22. Qg3 {[%emt 0:01:30]} Qf8 {[%emt 0:06:30]} 23. Nf3 {[%emt 0:18:30]} h6 {[%emt 0:03:30]} 24. hxg6 {[%emt 0:04:30]} Rxg6 {[%emt 0:00:30]} 25. Qh4 {[%emt 0:01:30]} Qf4+ {[%emt 0:04:30]} 26. Qxf4 {[%emt 0:00:30]} exf4 {[%emt 0:00:30]} 27. Rxg6 {[%emt 0:06:11]} Nxg6 {[%emt 0:00:00]} 28. Rd1 {[%emt 0:04:21]} Rd8 {[%emt 0:10:00]} 29. dxc6 {[%emt 0:05:10]} Bxc6 {[%emt 0:03:30]} 30. Nb5 {[%emt 0:00:53]} Bf8 {[%emt 0:01:30]} 31. Nd2 {[%emt 0:02:59]} Ne5 {[%emt 0:00:30]} 32. f3 {[%emt 0:00:37]} Be7 {[%emt 0:07:18]} 33. Nb1 {[%emt 0:00:47]} Nf7 {[%emt 0:04:27]} 34. N1c3 {[%emt 0:00:08]} Ra8 {[%emt 0:00:03]} 35. Rg1+ {[%emt 0:01:07]} Ng5 {[%emt 0:00:29]} 36. Nc7 {[%emt 0:03:21]} Rf8 {[%emt 0:01:22]} 37. Ne6 {[%emt 0:01:11]} Rf7 {[%emt 0:00:09]} 38. Bd1 {[%emt 0:00:31]} Kh7 {[%emt 0:02:39]} 39. Nxg5+ {[%emt 0:00:09]} Bxg5 {[%emt 0:00:00]} 40. Bxa4 {[%emt 0:00:00]} Bxa4 {[%emt 0:00:00]} 41. Nxa4 {[%emt 0:01:05]} Bf6 {[%emt 0:02:33]} 42. Kc2 {[%emt 0:01:30]} h5 {[%emt 0:05:30]} 43. b4 {[%emt 0:03:30]} cxb4 {[%emt 0:02:30]} 44. axb4 {[%emt 0:00:00]} Ra7 {[%emt 0:00:30]} 45. Kb3 {[%emt 0:01:00]} h4 {[%emt 0:03:30]} 46. b5 {[%emt 0:00:30]} Rg7 {[%emt 0:04:30]} 47. Rh1 {[%emt 0:01:30]} Rg3 {[%emt 0:10:22]} 48. b6 {[%emt 0:01:30]} Rxf3+ {[%emt 0:02:52]} 49. Kb4 {[%emt 0:00:00]} Rg3 {[%emt 0:03:43]} 50. b7 {[%emt 0:02:00]} Rg8 {[%emt 0:00:05]} 51. Kb5 {[%emt 0:00:30]} Kh6 {[%emt 0:02:14]} 52. Nb6 {[%emt 0:03:30]} f3 {[%emt 0:01:51]} 53. Nc8 {[%emt 0:00:30]} f2 {[%emt 0:01:58]} 54. Rf1 {[%emt 0:00:30]} Bd4 {[%emt 0:00:24]} 55. b8=Q $18 {[%emt 0:00:30]} Rg1 {[%emt 0:00:18]} 56. Qxd6+ {[%emt 0:00:00]} Kh5 {[%emt 0:00:26]} 57. Ne7 {[%emt 0:03:00]} Kg4 {[%emt 0:00:43]} 58. Qg6+ {[%emt 0:15:09]} Kh3 {[%emt 0:02:16]} 59. Qf5+ {[%emt 0:05:14]} Kg2 {[%emt 0:00:03]} 60. Rxf2+ {[%emt 0:00:47]} Bxf2 {[%emt 0:00:30]} 61. Ng6 {[%emt 0:00:00]} Rb1+ {[%emt 0:00:13]} 62. Ka4 {[%emt 0:00:32]} Ra1+ {[%emt 0:00:43]} 63. Kb3 {[%emt 0:00:12]} Bg3 {[%emt 0:00:57]} 64. Qg4 {[%emt 0:01:56]} Rb1+ {[%emt 0:00:46]} 65. Kc2 {[%emt 0:00:16]} Rh1 {[%emt 0:00:00]} 66. Nf4+ {[%emt 0:00:46]} Kf2 {[%emt 0:00:11]} 67. Qe2+ {[%emt 0:00:30]} Kg1 {[%emt 0:00:00]} 68. Qg2# {[%emt 0:00:00]} 1-0